bitfinex-derivatives/quotes_BTCF0:USTF0_20240815
["timestamp","ask_amount","ask_price","bid_price","bid_amount"]
[1723698001592,0.059935,58393.0,58392.0,0.06835721]
[1723698001801,0.62203545,58393.0,58392.0,0.06835721]
[1723698001996,0.62203545,58393.0,58392.0,0.06585721]
[1723698002397,0.059936,58392.0,58388.0,0.05994]
[1723698002699,0.0947,58389.0,58388.0,0.05994]
[1723698002996,0.17012498,58389.0,58388.0,0.84158287]
[1723698003194,0.26482498,58389.0,58388.0,0.84154639]
[1723698003393,0.26482498,58389.0,58388.0,0.76176143]
[1723698003600,0.26482498,58389.0,58388.0,0.85646143]
[1723698003601,0.17012498,58389.0,58388.0,0.85646143]
[1723698003797,0.00012498,58389.0,58388.0,1.82399473]
[1723698003998,0.00012498,58389.0,58388.0,1.99549473]
[1723698004298,0.001,58393.0,58392.0,0.059936]
[1723698004507,0.001,58393.0,58392.0,0.69652801]
[1723698004705,0.001,58393.0,58392.0,5.53549037]
[1723698005007,0.00025682,58396.0,58395.0,0.059933]
[1723698005316,0.16,58396.0,58395.0,0.13888388]
[1723698005601,0.16,58396.0,58395.0,0.33427385]
[1723698006306,0.17,58396.0,58395.0,0.40437319]
[1723698006502,0.171,58396.0,58395.0,0.41637319]
[1723698007306,0.001,58396.0,58395.0,0.41637319]
[1723698007501,0.001,58396.0,58395.0,0.5185098]
[1723698007899,0.002,58396.0,58395.0,0.42137319]
[1723698008405,0.002,58396.0,58395.0,0.42843359]
[1723698008715,0.002,58396.0,58395.0,0.50705636]
[1723698009211,0.152,58396.0,58395.0,0.50705636]
[1723698009512,0.152,58396.0,58395.0,0.42192555]
[1723698010215,0.152,58396.0,58395.0,0.50704746]
[1723698010410,0.152,58396.0,58395.0,0.42192555]
[1723698011015,0.152,58396.0,58395.0,0.09562277]
[1723698011202,0.152,58396.0,58395.0,0.18075521]
[1723698011404,0.152,58396.0,58395.0,0.10213244]
[1723698011600,0.152,58396.0,58395.0,0.017]
[1723698011914,0.152,58396.0,58395.0,0.09550061]
[1723698012212,0.152,58396.0,58395.0,0.18062947]
[1723698012416,0.002,58396.0,58395.0,0.35245958]
[1723698013108,0.00025682,58401.0,58400.0,0.059927]
[1723698013309,0.00025682,58401.0,58400.0,0.49922761]
[1723698013499,0.00025682,58401.0,58400.0,0.75631204]
[1723698013700,0.00025682,58401.0,58400.0,4.52631204]
[1723698014307,0.00025682,58401.0,58400.0,5.04386748]
[1723698014503,0.00125682,58401.0,58400.0,5.05686748]
[1723698014910,0.00125682,58401.0,58400.0,4.95474233]
[1723698015105,0.00225682,58401.0,58400.0,5.07374644]
[1723698016507,0.00225682,58401.0,58400.0,5.58742644]
[1723698017100,0.00225682,58401.0,58400.0,5.58742351]
[1723698017510,0.17225682,58401.0,58400.0,5.07374287]
[1723698017710,0.17225682,58401.0,58400.0,1.04161566]
[1723698019706,0.17225682,58401.0,58400.0,1.04050395]
[1723698019909,0.40895682,58401.0,58400.0,1.0657157]
[1723698020231,0.46888282,58401.0,58400.0,0.019]
[1723698020420,0.98256282,58401.0,58400.0,0.019]
[1723698020605,0.46888282,58401.0,58400.0,0.019]
[1723698022014,0.46888282,58401.0,58400.0,0.07010665]
[1723698022823,0.46888282,58401.0,58400.0,0.019]
[1723698023210,0.40895682,58401.0,58400.0,0.078927]
[1723698024011,0.17225682,58401.0,58400.0,0.078927]
[1723698031013,0.17225682,58401.0,58400.0,0.69512877]
[1723698031312,0.17225682,58401.0,58400.0,1.80445505]
[1723698031313,0.00225682,58401.0,58400.0,1.80445505]
[1723698031517,0.00225682,58401.0,58400.0,2.20445505]
[1723698031919,0.00225682,58401.0,58400.0,5.97445505]
[1723698032116,0.00225682,58401.0,58400.0,5.98504506]
[1723698032318,0.00225682,58401.0,58400.0,5.48294436]
[1723698032818,0.00225682,58401.0,58400.0,5.57265991]
[1723698033019,0.00225682,58401.0,58400.0,5.97265991]
[1723698033219,0.00225682,58401.0,58400.0,5.8048441]
[1723698033526,0.1717,58415.0,58400.0,5.8048441]
[1723698033527,0.1717,58415.0,58413.0,0.059913]
[1723698033720,0.3117,58415.0,58414.0,0.3608]
[1723698034128,0.3117,58415.0,58414.0,0.76401825]
[1723698034421,0.3117,58415.0,58414.0,0.67891157]
[1723698034626,0.3127,58415.0,58414.0,0.67891157]
[1723698034827,0.3157,58415.0,58414.0,0.83953226]
[1723698035128,0.144,58415.0,58414.0,0.83953226]
[1723698035327,0.144,58415.0,58414.0,0.83945034]
[1723698035521,0.141,58415.0,58414.0,0.83945034]
[1723698035717,0.144,58415.0,58414.0,0.83945034]
[1723698035923,0.146,58415.0,58414.0,0.83945034]
[1723698036314,0.146,58415.0,58414.0,0.67891157]
[1723698037426,0.142,58415.0,58414.0,0.31911157]
[1723698037731,0.14,58415.0,58414.0,0.67991157]
[1723698037932,0.14,58415.0,58414.0,0.32211157]
[1723698038226,0.14,58415.0,58414.0,0.68291157]
[1723698041719,0.14,58415.0,58414.0,0.8427028]
[1723698041934,0.00025682,58420.0,58419.0,0.059908]
[1723698042129,0.04025682,58420.0,58419.0,0.420708]
[1723698042428,0.04025682,58420.0,58419.0,0.67838599]
[1723698042935,0.5231,58428.0,58419.0,0.67838599]
[1723698042936,0.5231,58428.0,58419.0,2.14247626]
[1723698043130,0.3445,58428.0,58427.0,0.3608]
[1723698043337,0.1767,58428.0,58427.0,0.3608]
[1723698043640,0.1767,58428.0,58427.0,0.61802414]
[1723698044231,0.1767,58428.0,58427.0,0.67792414]
[1723698044729,0.1827,58428.0,58427.0,0.67892414]
[1723698045135,0.1937,58428.0,58427.0,0.67992414]
[1723698045329,0.017,58428.0,58427.0,0.67992414]
[1723698045638,0.017,58428.0,58427.0,1.59336414]
[1723698046035,0.017,58428.0,58427.0,1.60403043]
[1723698047233,0.011,58428.0,58427.0,1.60303043]
[1723698047434,0.013,58428.0,58427.0,1.60303043]
[1723698047634,0.002,58428.0,58427.0,1.74780285]
[1723698047830,0.3216,58441.0,58439.0,0.059887]
[1723698048040,0.17,58441.0,58440.0,0.3608]
[1723698048245,0.17,58441.0,58440.0,0.61719741]
[1723698049549,0.175,58441.0,58440.0,0.61719741]
[1723698049744,0.182,58441.0,58440.0,0.61719741]
[1723698050641,0.177,58441.0,58440.0,0.25639741]
[1723698050845,0.178,58441.0,58440.0,0.25639741]
[1723698051241,0.178,58441.0,58440.0,0.25739741]
[1723698051633,0.178,58441.0,58440.0,0.31728441]
[1723698053048,0.178,58441.0,58440.0,0.67808441]
[1723698059949,0.178,58441.0,58440.0,0.61819741]
[1723698060152,0.178,58441.0,58435.0,0.41183265]
[1723698060153,1.68886,58441.0,58435.0,0.05103265]
[1723698060347,0.3608,58436.0,58427.0,0.05077583]
[1723698060543,0.296596,58431.0,58423.0,0.41157583]
[1723698060744,0.326,58430.0,58427.0,0.25569977]
[1723698061051,0.496,58430.0,58423.0,0.420704]
[1723698061354,0.496,58430.0,58428.0,0.25569977]
[1723698061561,0.496,58430.0,58426.0,0.25569977]
[1723698061751,0.496,58430.0,58424.0,0.059903]
[1723698061949,0.496,58430.0,58427.0,0.25506928]
[1723698062145,0.496,58430.0,58427.0,0.26406928]
[1723698062451,0.497,58430.0,58427.0,0.0689]
[1723698062654,0.497,58430.0,58428.0,0.25759151]
[1723698063761,0.059903,58424.0,58423.0,0.006]
[1723698064051,0.059903,58424.0,58418.0,0.23956]
[1723698064052,0.219903,58424.0,58418.0,0.23956]
[1723698064242,0.219903,58424.0,58418.0,0.299469]
[1723698064865,0.219903,58424.0,58420.0,0.059907]
[1723698065152,0.16,58424.0,58423.0,0.006]
[1723698065749,0.16,58424.0,58423.0,0.002]
[1723698066750,0.16,58424.0,58421.0,0.00725682]
[1723698067348,0.16,58424.0,58421.0,0.00325682]
[1723698067549,0.16,58424.0,58423.0,0.002]
[1723698068061,0.16,58424.0,58421.0,0.00725682]
[1723698068544,0.16,58424.0,58421.0,0.00425682]
[1723698068748,0.16,58424.0,58423.0,0.001]
[1723698069349,0.16,58424.0,58421.0,0.06416282]
[1723698069660,0.16,58424.0,58421.0,0.06316282]
[1723698069959,0.16,58424.0,58423.0,0.002]
[1723698071058,0.16,58424.0,58421.0,0.06716282]
[1723698071461,0.16,58424.0,58423.0,0.002]
[1723698071759,0.16,58424.0,58423.0,0.003]
[1723698072357,0.16,58424.0,58423.0,0.061904]
[1723698072765,0.16,58424.0,58423.0,0.31823743]
[1723698073353,0.16,58424.0,58423.0,0.37012815]
[1723698073559,0.16,58424.0,58423.0,0.31923743]
[1723698073763,0.16,58424.0,58423.0,0.39763798]
[1723698074362,0.16,58424.0,58423.0,0.32984997]
[1723698074967,0.16,58424.0,58423.0,0.38073997]
[1723698075554,0.16,58424.0,58423.0,0.32984997]
[1723698077051,0.16,58424.0,58423.0,0.31923743]
[1723698077251,0.16,58424.0,58423.0,0.37012289]
[1723698077456,0.16,58424.0,58423.0,0.31923743]
[1723698080954,0.16,58424.0,58423.0,0.68003743]
[1723698082760,0.16,58424.0,58423.0,0.31923743]
[1723698083068,0.16,58424.0,58423.0,0.68003743]
[1723698084965,0.16,58424.0,58423.0,0.37017012]
[1723698085167,0.16,58424.0,58423.0,0.31923743]
[1723698086562,0.16,58424.0,58423.0,0.38702544]
[1723698087267,0.16,58424.0,58423.0,0.68003743]
[1723698088367,0.16,58424.0,58423.0,0.83962787]
[1723698088676,0.16,58424.0,58423.0,0.75462499]
[1723698090566,0.16,58424.0,58423.0,0.75468345]
[1723698091770,0.16,58424.0,58423.0,0.8566869]
[1723698092962,0.16,58424.0,58423.0,4.52468345]
[1723698094473,0.15874318,58424.0,58423.0,4.52468345]
[1723698094662,0.15874318,58424.0,58423.0,4.62684018]
[1723698095063,0.15874318,58424.0,58423.0,4.62630257]
[1723698095662,0.15874318,58424.0,58423.0,4.52414584]
[1723698097664,0.14966667,58424.0,58423.0,5.67432584]
[1723698097867,0.1559,58430.0,58429.0,0.059898]
[1723698098175,0.3059,58430.0,58429.0,0.84565984]
[1723698098364,0.15,58430.0,58429.0,0.84565984]
[1723698099073,0.15,58430.0,58429.0,0.93254479]
[1723698099873,0.15,58430.0,58429.0,0.93147805]
[1723698100371,0.156,58430.0,58429.0,0.93247805]
[1723698100669,0.16,58430.0,58429.0,0.93247805]
[1723698100977,0.01,58430.0,58429.0,0.93247805]
[1723698101766,0.16,58430.0,58429.0,0.93247805]
[1723698101966,0.01,58430.0,58429.0,0.93247805]
[1723698102571,0.01,58430.0,58429.0,0.94339127]
[1723698102763,0.01,58430.0,58429.0,1.20955566]
[1723698104762,0.01,58430.0,58429.0,0.94339127]
[1723698104975,0.01,58430.0,58429.0,1.20955351]
[1723698105278,0.17,58430.0,58429.0,1.20955351]
[1723698105677,0.01,58430.0,58429.0,1.20955351]
[1723698105872,0.01,58430.0,58429.0,1.35860436]
[1723698106177,0.01,58430.0,58429.0,0.94339127]
[1723698106377,0.01,58430.0,58429.0,1.20955709]
[1723698106877,0.004,58430.0,58429.0,1.21055709]
[1723698107068,0.004,58430.0,58429.0,1.12388139]
[1723698107262,0.00025682,58432.0,58431.0,0.059896]
[1723698107467,0.16025682,58432.0,58431.0,0.13314692]
[1723698107667,0.16025682,58432.0,58431.0,0.65455237]
[1723698108278,0.16025682,58432.0,58431.0,0.38838697]
[1723698108476,0.16025682,58432.0,58431.0,0.65455234]
[1723698108665,0.16025682,58432.0,58431.0,0.65455266]
[1723698109280,0.16025682,58432.0,58431.0,0.38838697]
[1723698110078,0.16025682,58432.0,58431.0,0.38938697]
[1723698110771,0.16025682,58432.0,58431.0,0.47440508]
[1723698110971,0.16025682,58432.0,58431.0,0.38938697]
[1723698111973,0.16025682,58432.0,58431.0,0.47439693]
[1723698112772,0.16025682,58432.0,58431.0,0.21915688]
[1723698113676,0.16025682,58432.0,58431.0,0.13414692]
[1723698113870,0.16025682,58432.0,58431.0,0.21912665]
[1723698114065,0.16025682,58432.0,58431.0,0.21812665]
[1723698114279,0.16025682,58432.0,58431.0,0.21912665]
[1723698114574,0.16025682,58432.0,58431.0,0.57992665]
[1723698114782,0.16025682,58432.0,58431.0,0.49494692]
[1723698115282,0.16025682,58432.0,58431.0,0.57993102]
[1723698115484,0.16025682,58432.0,58431.0,0.49494692]
[1723698117083,0.17118436,58432.0,58431.0,0.49494692]
[1723698118680,0.17118436,58432.0,58431.0,0.76111441]
[1723698119378,0.16025682,58432.0,58431.0,0.76111441]
[1723698119581,0.16025682,58432.0,58431.0,0.58954692]
[1723698119885,0.16025682,58432.0,58431.0,0.95779879]
[1723698120781,0.16025682,58432.0,58431.0,0.85571288]
[1723698121181,0.16025682,58432.0,58431.0,1.11194005]
[1723698121780,0.25485682,58432.0,58431.0,1.01734005]
[1723698122283,0.25485682,58432.0,58431.0,0.7511619]
[1723698122484,0.25485682,58432.0,58431.0,1.01734008]
[1723698123578,0.25485682,58432.0,58431.0,1.11942599]
[1723698124582,0.25485682,58432.0,58431.0,0.75862599]
[1723698124781,0.25485682,58432.0,58431.0,1.11942599]
[1723698125486,0.25485682,58432.0,58431.0,1.01734008]
[1723698125882,0.25485682,58432.0,58431.0,1.11968752]
[1723698126093,0.25485682,58432.0,58431.0,0.49270934]
[1723698126386,0.25485682,58432.0,58431.0,1.01748157]
[1723698128489,0.25485682,58432.0,58431.0,1.10423342]
[1723698129287,1.16829682,58432.0,58431.0,0.0743924]
[1723698129492,1.22819182,58432.0,58431.0,0.06915457]
[1723698129681,1.22819182,58432.0,58431.0,0.001]
[1723698129882,1.22819182,58432.0,58431.0,0.05212501]
[1723698130486,0.059896,58431.0,58430.0,0.05112501]
[1723698130695,0.059897,58430.0,58429.0,0.05112501]
[1723698130884,0.39286914,58430.0,58429.0,0.05112501]
[1723698131081,1.30630914,58430.0,58429.0,0.05112501]
[1723698131486,1.237937,58430.0,58428.0,0.05112501]
[1723698131795,0.307998,58429.0,58428.0,0.05112501]
[1723698131987,0.991438,58429.0,58428.0,0.05112501]
[1723698132183,1.391438,58429.0,58428.0,0.05112501]
[1723698132691,0.059899,58428.0,58427.0,0.05112501]
[1723698132989,0.71654142,58428.0,58427.0,0.05112501]
[1723698133178,1.62998142,58428.0,58427.0,0.05112501]
[1723698133591,0.0599,58427.0,58426.0,0.05112501]
[1723698133783,0.6467,58427.0,58426.0,0.05112501]
[1723698133983,1.16018,58427.0,58426.0,0.05112501]
[1723698134492,1.52098,58427.0,58426.0,0.05112501]
[1723698134885,1.92098,58427.0,58426.0,0.05112501]
[1723698135388,0.059901,58426.0,58425.0,0.05112501]
[1723698135583,0.294501,58426.0,58425.0,0.05112501]
[1723698135779,1.207981,58426.0,58425.0,0.05112501]
[1723698136783,1.207981,58426.0,58425.0,0.05212501]
[1723698137493,1.207981,58426.0,58425.0,0.001]
[1723698137696,0.807981,58426.0,58425.0,0.001]
[1723698137889,1.207981,58426.0,58425.0,0.001]
[1723698140598,0.807981,58426.0,58425.0,0.001]
[1723698140898,0.199901,58426.0,58425.0,0.001]
[1723698141100,0.294501,58426.0,58425.0,0.05212501]
[1723698141483,0.294501,58426.0,58425.0,0.001]
[1723698141687,0.14,58426.0,58425.0,0.060902]
[1723698141893,0.14,58426.0,58425.0,0.38656067]
[1723698142287,0.14,58426.0,58425.0,0.3184061]
[1723698142897,0.14,58426.0,58425.0,1.57207915]
[1723698143194,0.14,58426.0,58425.0,1.71537915]
[1723698144393,0.14,58426.0,58425.0,1.72627683]
[1723698146896,0.14,58426.0,58425.0,2.08707683]
[1723698147096,0.00025682,58432.0,58430.0,0.059897]
[1723698147297,0.01025682,58432.0,58431.0,0.51846586]
[1723698147494,0.01025682,58432.0,58431.0,0.77487248]
[1723698148516,0.01625682,58432.0,58431.0,0.77487248]
[1723698148912,0.17075182,58432.0,58431.0,0.77487248]
[1723698149120,0.11085682,58432.0,58430.0,0.06899864]
[1723698149311,0.059899,58428.0,58427.0,0.06799864]
[1723698149510,1.075299,58428.0,58427.0,0.0510132]
[1723698149711,1.12884,58428.0,58425.0,0.0510132]
[1723698149913,0.154501,58426.0,58425.0,0.0510132]
[1723698150119,0.154501,58426.0,58419.0,0.3608]
[1723698150120,0.324501,58426.0,58423.0,0.06799864]
[1723698150420,0.0946,58424.0,58423.0,0.06799864]
[1723698150624,0.2646,58424.0,58423.0,0.06799864]
[1723698151621,0.324503,58424.0,58423.0,0.06799864]
[1723698152416,0.324503,58424.0,58423.0,0.07099864]
[1723698152616,0.2646,58424.0,58423.0,0.07099864]
[1723698152817,0.2646,58424.0,58423.0,0.06799864]
[1723698153112,0.2646,58424.0,58423.0,0.003]
[1723698153509,0.2646,58424.0,58423.0,0.005]
[1723698155015,0.324503,58424.0,58423.0,0.005]
[1723698157018,0.837983,58424.0,58423.0,0.07306986]
[1723698157215,0.059905,58422.0,58421.0,0.00025682]
[1723698157415,0.059908,58419.0,58418.0,0.06806986]
[1723698157609,0.15,58419.0,58418.0,0.06809491]
[1723698158308,0.304508,58419.0,58418.0,0.06809491]
[1723698158520,0.2446,58419.0,58418.0,0.12800391]
[1723698158712,0.2446,58419.0,58418.0,0.059909]
[1723698159920,0.2456,58419.0,58418.0,0.13699386]
[1723698160820,0.2466,58419.0,58418.0,0.14399386]
[1723698162621,0.2466,58419.0,58418.0,0.075909]
[1723698163622,0.2466,58419.0,58418.0,0.016]
[1723698163822,0.306508,58419.0,58418.0,0.016]
[1723698165823,0.059913,58414.0,58413.0,0.00025682]
[1723698166124,0.1146,58414.0,58413.0,0.06017082]
[1723698166323,0.1146,58414.0,58413.0,0.12824137]
[1723698166625,0.1146,58414.0,58413.0,0.06017082]
[1723698166819,0.11472786,58414.0,58413.0,0.06017082]
[1723698167027,0.11572786,58414.0,58413.0,0.07317082]
[1723698167526,0.11672786,58414.0,58413.0,0.15522689]
[1723698167916,0.11672786,58414.0,58413.0,0.08717082]
[1723698168830,0.11672786,58414.0,58413.0,0.08317082]
[1723698170024,0.11672786,58414.0,58413.0,0.34154228]
[1723698176026,0.11672786,58414.0,58413.0,0.02325682]
[1723698176416,0.47752786,58414.0,58413.0,0.02325682]
[1723698176624,0.47752786,58414.0,58413.0,0.09134074]
[1723698176826,0.47752786,58414.0,58413.0,0.02325682]
[1723698177025,0.47752786,58414.0,58407.0,0.08497421]
[1723698177026,1.45100086,58414.0,58407.0,0.06808392]
[1723698177227,0.3608,58408.0,58405.0,0.06808392]
[1723698177430,0.0946,58406.0,58404.0,0.06808392]
[1723698177633,0.2446,58406.0,58405.0,0.06808392]
[1723698177932,0.2446,58406.0,58404.0,0.06808392]
[1723698177933,0.29584242,58406.0,58404.0,0.06808392]
[1723698178122,0.35576442,58406.0,58404.0,0.06808392]
[1723698178322,0.35576442,58406.0,58403.0,0.420724]
[1723698178323,0.29584242,58406.0,58405.0,0.12800692]
[1723698178529,0.2446,58406.0,58405.0,0.059923]
[1723698178830,0.15,58406.0,58405.0,0.059923]
[1723698179034,0.2456,58406.0,58405.0,0.47589099]
[1723698179223,0.2456,58406.0,58405.0,0.47606921]
[1723698179429,0.2456,58406.0,58405.0,0.39091678]
[1723698179933,0.152,58406.0,58405.0,0.39091678]
[1723698181326,0.152,58406.0,58405.0,0.47607187]
[1723698182731,0.152,58406.0,58405.0,0.31685969]
[1723698183034,0.152,58406.0,58405.0,0.25693669]
[1723698183447,0.211922,58406.0,58404.0,0.08515509]
[1723698183631,0.3105,58405.0,58403.0,0.3608]
[1723698183825,0.4605,58405.0,58403.0,0.3608]
[1723698184131,0.1514,58404.0,58403.0,0.3608]
[1723698184336,0.3014,58404.0,58403.0,0.3608]
[1723698185036,0.3014,58404.0,58402.0,0.08515509]
[1723698185234,0.3014,58404.0,58401.0,0.08515509]
[1723698185437,0.3024,58404.0,58402.0,0.08515509]
[1723698186138,0.3014,58404.0,58402.0,0.08515509]
[1723698186437,0.3034,58404.0,58403.0,0.059925]
[1723698187639,0.152,58404.0,58403.0,0.4015393]
[1723698187935,0.152,58404.0,58403.0,4.16010968]
[1723698188837,0.152,58404.0,58403.0,0.39010968]
[1723698190941,0.152,58404.0,58403.0,0.40086978]
[1723698191536,0.02,58410.0,58409.0,0.059918]
[1723698191841,0.01,58410.0,58409.0,0.31824313]
[1723698193339,0.01,58410.0,58409.0,0.40339865]
[1723698193531,0.01,58410.0,58409.0,0.47646896]
[1723698195132,0.01,58410.0,58409.0,0.83726896]
[1723698196547,0.01,58410.0,58409.0,0.83731121]
[1723698197833,0.01,58410.0,58409.0,0.83732565]
[1723698198036,0.01,58410.0,58409.0,0.76421309]
[1723698198344,0.01,58410.0,58409.0,0.25832513]
[1723698198545,0.01,58410.0,58406.0,0.08516996]
[1723698198741,0.3136,58409.0,58407.0,0.05992]
[1723698198935,0.2367,58408.0,58407.0,0.05992]
[1723698199142,0.3967,58408.0,58407.0,0.05992]
[1723698199945,0.2547,58408.0,58407.0,0.05992]
[1723698200646,1.16834,58408.0,58404.0,0.08516996]
[1723698200844,1.16834,58408.0,58400.0,0.10196905]
[1723698200845,0.0947,58405.0,58400.0,0.06818409]
[1723698201048,0.059929,58399.0,58398.0,0.06819578]
[1723698201240,0.05993,58398.0,58397.0,0.0001666]
[1723698201439,1.09852996,58398.0,58397.0,0.0001666]
[1723698201643,1.19905,58398.0,58397.0,0.0001666]
[1723698202145,1.65898,58398.0,58397.0,0.0001666]
[1723698202452,1.59905,58398.0,58397.0,0.0001666]
[1723698202749,1.60005,58398.0,58397.0,0.0001666]
[1723698203151,0.059935,58393.0,58392.0,0.00025682]
[1723698203347,0.655435,58393.0,58392.0,0.00025682]
[1723698203752,0.294635,58393.0,58392.0,0.00025682]
[1723698203951,0.797535,58393.0,58392.0,0.00025682]
[1723698204346,0.79766532,58393.0,58392.0,0.00025682]
[1723698205144,1.71242532,58393.0,58392.0,0.00025682]
[1723698205453,1.31342532,58393.0,58392.0,0.00025682]
[1723698205654,0.059941,58387.0,58384.0,0.06819578]
[1723698205860,0.893042,58386.0,58382.0,0.06819578]
[1723698206052,0.059946,58382.0,58381.0,0.06819578]
[1723698206255,0.059947,58381.0,58378.0,0.05995]
[1723698206450,0.2368,58380.0,58378.0,0.05995]
[1723698206756,0.3968,58380.0,58378.0,0.05995]
[1723698207853,0.456749,58380.0,58378.0,0.05995]
[1723698208256,0.05995,58379.0,58376.0,0.3608]
[1723698208448,0.21995,58379.0,58376.0,0.3608]
[1723698208955,0.21995,58379.0,58377.0,0.25810434]
[1723698208956,0.16,58379.0,58377.0,0.25810434]
[1723698209854,0.161,58379.0,58377.0,0.25810434]
[1723698210261,0.161,58379.0,58378.0,0.05995]
[1723698211653,0.162,58379.0,58378.0,0.05995]
[1723698217553,0.161,58379.0,58378.0,0.05995]
[1723698217858,0.162,58379.0,58378.0,0.05995]
[1723698221956,0.162,58379.0,58377.0,0.3608]
[1723698223268,0.221949,58379.0,58377.0,0.3608]
[1723698224372,0.162,58379.0,58377.0,0.3608]
[1723698224561,0.162,58379.0,58378.0,0.25722093]
[1723698224763,0.162,58379.0,58378.0,0.31717093]
[1723698226857,0.161,58379.0,58378.0,0.25722093]
[1723698227059,0.05995,58378.0,58377.0,0.3608]
[1723698227364,0.21995,58378.0,58377.0,0.3608]
[1723698228372,0.22095,58378.0,58377.0,0.3608]
[1723698228564,0.22195,58378.0,58377.0,0.3608]
[1723698231264,0.22195,58378.0,58377.0,0.420751]
[1723698232065,0.23261182,58378.0,58377.0,0.420751]
[1723698232265,0.23161182,58378.0,58377.0,0.420751]
[1723698232569,0.17266182,58378.0,58377.0,0.420751]
[1723698233372,0.17266182,58378.0,58377.0,0.58041191]
[1723698233875,0.17266182,58378.0,58377.0,0.21961191]
[1723698234368,0.22387606,58378.0,58377.0,0.21962818]
[1723698235375,0.22387606,58378.0,58377.0,0.13445822]
[1723698235868,0.31857606,58378.0,58377.0,0.13445822]
[1723698236280,0.37852606,58378.0,58377.0,0.13445822]
[1723698236777,0.32731182,58378.0,58377.0,0.13445822]
[1723698236965,0.32731182,58378.0,58377.0,0.07450722]
[1723698237478,0.32731182,58378.0,58377.0,0.07451822]
[1723698241281,0.37852606,58378.0,58377.0,0.07451822]
[1723698243377,0.37852606,58378.0,58377.0,0.15988977]
[1723698243572,0.059952,58376.0,58375.0,0.08537155]
[1723698243774,0.219952,58376.0,58375.0,0.07652188]
[1723698243975,0.27131674,58376.0,58371.0,0.10196905]
[1723698244173,0.3608,58373.0,58371.0,0.08539382]
[1723698244380,0.059958,58370.0,58369.0,0.08539382]
[1723698244677,0.059961,58367.0,58366.0,0.08539382]
[1723698244877,0.059963,58365.0,58364.0,0.14535782]
[1723698245074,0.22015485,58365.0,58364.0,0.2187348]
[1723698245274,0.37475485,58365.0,58364.0,0.059964]
[1723698245982,0.61165485,58365.0,58364.0,0.059964]
[1723698247176,0.61165485,58365.0,58364.0,0.12817643]
[1723698248181,0.61165485,58365.0,58364.0,0.059964]
[1723698248478,0.61165485,58365.0,58363.0,0.06821243]
[1723698248479,0.059965,58364.0,58363.0,0.06821243]
[1723698248676,0.523765,58364.0,58363.0,0.06821243]
[1723698251582,0.059966,58362.0,58361.0,0.12817943]
[1723698251781,0.059968,58361.0,58360.0,0.06821243]
[1723698251980,0.059968,58361.0,58359.0,0.06835409]
[1723698251981,0.219968,58361.0,58359.0,0.06835409]
[1723698252181,0.219968,58361.0,58359.0,0.00014166]
[1723698252571,0.059969,58360.0,58359.0,0.00014166]
[1723698252774,0.219969,58360.0,58359.0,0.00014166]
[1723698253979,0.220969,58360.0,58359.0,0.00014166]
[1723698254577,0.221969,58360.0,58359.0,0.00014166]
[1723698256077,1.136009,58360.0,58359.0,0.00014166]
[1723698256785,0.059976,58354.0,58349.0,0.05998]
[1723698257087,0.2369,58352.0,58349.0,0.05998]
[1723698257284,0.3869,58352.0,58349.0,0.05998]
[1723698259181,0.3869,58352.0,58348.0,0.01055961]
[1723698259489,0.3869,58352.0,58346.0,0.24004335]
[1723698259490,0.7477,58352.0,58346.0,0.06018635]
[1723698259673,0.1528,58351.0,58346.0,0.06018635]
[1723698259882,0.3028,58351.0,58346.0,0.06018635]
[1723698261190,0.059979,58350.0,58346.0,0.06018635]
[1723698261378,0.219979,58350.0,58346.0,0.06018635]
[1723698261976,0.16,58350.0,58346.0,0.00020335]
[1723698262182,0.059981,58348.0,58346.0,0.00020335]
[1723698262385,0.2369,58347.0,58346.0,0.00020335]
[1723698262690,0.3969,58347.0,58346.0,0.00020335]
[1723698263787,0.3979,58347.0,58346.0,0.00020335]
[1723698264182,0.161,58347.0,58346.0,0.00020335]
[1723698265090,0.162,58347.0,58346.0,0.00020335]
[1723698265286,0.162,58347.0,58346.0,0.06018635]
[1723698267882,0.162,58347.0,58346.0,0.47332633]
[1723698267883,0.2568,58347.0,58346.0,0.47332633]
[1723698268083,0.2568,58347.0,58346.0,0.63242633]
[1723698269293,0.2568,58347.0,58346.0,0.70063876]
[1723698271200,0.2568,58347.0,58346.0,0.63242633]
[1723698271498,0.2568,58347.0,58346.0,0.99322633]
[1723698272197,0.2568,58347.0,58346.0,0.63242633]
[1723698272398,0.2568,58347.0,58346.0,0.99322633]
[1723698273203,0.2568,58347.0,58346.0,1.07862015]
[1723698274394,0.2568,58347.0,58346.0,1.06920421]
[1723698275003,0.2568,58347.0,58346.0,1.15453223]
[1723698275197,0.2568,58347.0,58346.0,1.06920421]
[1723698275794,0.2568,58347.0,58346.0,4.83920421]
[1723698276598,0.2568,58347.0,58346.0,4.83920619]
[1723698280505,0.10645138,58347.0,58346.0,4.83920619]
[1723698280710,0.10645138,58347.0,58346.0,4.94117524]
[1723698281216,0.10645138,58347.0,58346.0,4.83920619]
[1723698282414,0.10645138,58347.0,58346.0,4.92854902]
[1723698283907,0.10645138,58347.0,58346.0,4.56774902]
[1723698284107,0.10645138,58347.0,58346.0,4.92854902]
[1723698284310,0.10645138,58347.0,58346.0,0.75240619]
[1723698284517,0.10645138,58347.0,58346.0,0.39160619]
[1723698284716,0.41435138,58347.0,58346.0,0.00020335]
[1723698290318,0.46570585,58347.0,58346.0,0.00020335]
[1723698290714,0.47655694,58347.0,58346.0,0.00020335]
[1723698292119,0.42520247,58347.0,58346.0,0.00020335]
[1723698298033,0.47654737,58347.0,58346.0,0.00020335]
[1723698298216,0.47654737,58347.0,58346.0,0.06018635]
[1723698298416,0.42520247,58347.0,58346.0,0.06018635]
[1723698298834,0.47654737,58347.0,58346.0,0.06018635]
[1723698299328,0.42520247,58347.0,58346.0,0.06018635]
[1723698299726,0.47654737,58347.0,58346.0,0.06018635]
[1723698300827,0.42520247,58347.0,58346.0,0.06018635]
[1723698301220,0.48518447,58347.0,58346.0,0.06018635]
[1723698301927,1.39934447,58347.0,58346.0,0.00020335]